Workbook

Sheet الشركة
A1: =TODAY() -> 2019-03-13 | P1: حساب الشركة | AA1: عودة الى الجدول
H2: شق التعبان - بعيد
A3: رقم السيارة | B3: 2019-03-05 | C3: =B3+1 -> 2019-03-06 | D3: =C3+1 -> 2019-03-07 | E3: 2019-03-08 | F3: =E3+1 -> 2019-03-09 | G3: =F3+1 -> 2019-03-10 | H3: =G3+1 -> 2019-03-11 | I3: =H3+1 -> 2019-03-12 | J3: =I3+1 -> 2019-03-13 | K3: =J3+1 -> 2019-03-14 | L3: =K3+1 -> 2019-03-15 | M3: =L3+1 -> 2019-03-16 | N3: =M3+1 -> 2019-03-17 | O3: =N3+1 -> 2019-03-18 | P3: اجمالي النقلات | Q3: تكعيب السيارة | R3: الكمية م3 | S3: المبلغ | U3: عدد السراكي | W3: عدد النقلات من سجل السيارة | Y3: فرق النقلات بين الجدول والسجل
B4: =B3 -> 2019-03-05 | C4: =C3 -> 2019-03-06 | D4: =D3 -> 2019-03-07 | E4: 2019-03-08 | F4: =F3 -> 2019-03-09 | G4: 2019-03-10 | H4: 2019-03-11 | I4: 2019-03-12 | J4: 2019-03-13 | K4: 2019-03-14 | L4: 2019-03-15 | M4: 2019-03-16 | N4: 2019-03-17 | O4: 2019-03-18
A5: 10 | B5: 7 | F5: 16 | P5: =SUM(B5:O5) -> 23 | R5: =Q5*P5 -> 0 | S5: =R5*10.25 -> 0 | U5: =COUNTA(B5:O5) -> 2 | Y5: =P5-W5 -> 23
A6: 24 | G6: 3 | P6: =SUM(B6:O6) -> 3 | Q6: 15 | R6: =Q6*P6 -> 45 | S6: =R6*10.25 -> 461.25 | U6: =COUNTA(B6:O6) -> 1 | Y6: =P6-W6 -> 3
A7: 25 | B7: 13 | C7: 15 | F7: 17 | G7: 17 | H7: 11 | P7: 73 | Q7: 19 | R7: 1387 | S7: =R7*10.25 -> 14216.75 | U7: 5 | Y7: 73
A8: 175 | F8: 13 | G8: 12 | P8: 25 | Q8: 18.5 | R8: 462.5 | S8: 4740.625 | U8: 2 | Y8: 25
A9: 190 | F9: 17 | G9: 15 | H9: 17 | I9: 5 | P9: 54 | R9: 0 | S9: 0 | U9: 4 | Y9: 54
A10: 191 | B10: 14 | C10: 17 | F10: 18 | G10: 11 | H10: 17 | P10: 77 | R10: 0 | S10: 0 | U10: 5 | Y10: 77
A11: 194 | G11: 9 | P11: 9 | Q11: 19.5 | R11: 175.5 | S11: 1798.875 | U11: 1 | Y11: 9
A12: 219 | G12: 4 | P12: 4 | Q12: 13.5 | R12: 54 | S12: 553.5 | U12: 1 | Y12: 4
A13: 427 | G13: 15 | P13: =SUM(B13:O13) -> 15 | Q13: 20 | R13: =Q13*P13 -> 300 | S13: 3075 | U13: 1 | Y13: 15
A14: 1112 | C14: 4 | G14: 13 | P14: 17 | Q14: 19.5 | R14: 331.5 | S14: 3397.875 | U14: 2 | Y14: 17
A15: 6035 | B15: 10 | C15: 13 | G15: 13 | P15: 36 | Q15: 18 | R15: 648 | S15: 6642 | U15: 3 | Y15: 36
A16: 4368 | G16: 12 | P16: 12 | Q16: 12.5 | R16: 150 | S16: 1537.5 | U16: 1 | Y16: 12
A17: 303160 | G17: 2 | P17: =SUM(B17:O17) -> 2 | Q17: 15 | R17: =Q17*P17 -> 30 | S17: =R17*10.25 -> 307.5 | U17: =COUNTA(B17:O17) -> 1 | Y17: 2
A18: 375 | G18: 7 | P18: 7 | Q18: 18.5 | R18: 129.5 | S18: 1327.375 | U18: 1 | Y18: 7
P19: 0 | S19: 0 | U19: 0 | Y19: 0
A20: الإجمالي | B20: =SUM(B5:B19) -> 44 | C20: =SUM(C5:C19) -> 49 | D20: 0 | E20: 0 | F20: 81 | G20: 133 | H20: 45 | I20: 5 | J20: 0 | K20: 0 | L20: 0 | M20: 0 | N20: 0 | O20: 0 | P20: 357 | R20: 3713 | S20: =SUM(S5:S19) -> 38058.25 | U20: =SUM(U5:U19) -> 30 | W20: =SUM(W5:W19) -> 0 | Y20: =SUM(Y5:Y19) -> 357
B22: عدد النقلات : | E22: =P20 -> 357 | J22: ارصدة سابقة | O22: التاريخ
B23: الأمتار المكعبة : | E23: =R20 -> 3713 | J23: شق التعبان : | M23: 130362 | O23: 2019-03-04
B24: المبلغ المستحق : | E24: =E23*10.25 -> 38058.25 | J24: الأوسطي : | M24: 15649 | O24: 2019-03-04
B25: رصيد سابق : | E25: =M25 -> 146011 | J25: اجمالي الأرصدة السابقة : | M25: =SUM(M23:N24) -> 146011
B26: اجمالي المستحق : | E26: =E25+E24 -> 184069.25
B27: دفعات مستلمة : | E27: =M30 -> 30000 | J27: دفعات مستلمة | O27: التاريخ
B28: الباقي المستحق : | E28: =E26-E27 -> 154069.25 | J28: شق التعبان :
J29: الأوسطي : | M29: 30000 | O29: 2019-02-27
J30: اجمالي الدفعات المستلمة : | M30: =SUM(M28:N29) -> 30000
